[Event "Titled Tuesday Blitz January 18 2022"]
[White "Vargas, Gabriela"]
[Black "Coto Mederos, Michel"]
[WhiteFideId "3700860"]
[BlackFideId "3508528"]
[WhiteElo "2110"]
[BlackElo "2427"]
[Result "0-1"]
[Round "11"]
[TimeControl "180+1"]
[Date "2022.01.18"]
[WhiteClock "0:00:37"]
[BlackClock "0:00:05"]

1. Nf3 {[%clk 0:03:00]}  d5 {[%clk 0:02:59]} 2. g3 {[%clk 0:03:00]}  Nf6 {[%clk 0:02:58]} 3. Bg2 {[%clk 0:03:00]}  c5 {[%clk 0:02:54]} 4. O-O {[%clk 0:02:58]}  Nc6 {[%clk 0:02:54]} 5. d4 {[%clk 0:02:58]}  e6 {[%clk 0:02:18]} 6. c4 {[%clk 0:02:56]}  Be7 {[%clk 0:02:17]} 7. Nc3 {[%clk 0:02:54]}  O-O {[%clk 0:02:16]} 8. dxc5 {[%clk 0:02:54]}  Bxc5 {[%clk 0:02:16]} 9. cxd5 {[%clk 0:02:55]}  exd5 {[%clk 0:02:17]} 10. Bg5 {[%clk 0:02:54]}  Be6 {[%clk 0:02:13]} 11. Rc1 {[%clk 0:02:52]}  Be7 {[%clk 0:02:10]} 12. Nd4 {[%clk 0:02:40]}  Qb6 {[%clk 0:01:57]} 13. Nxc6 {[%clk 0:02:35]}  bxc6 {[%clk 0:01:54]} 14. Na4 {[%clk 0:02:35]}  Qb5 {[%clk 0:01:45]} 15. Be3 {[%clk 0:02:29]}  Nd7 {[%clk 0:01:36]} 16. b3 {[%clk 0:02:14]}  Ba3 {[%clk 0:01:23]} 17. Rc2 {[%clk 0:02:09]}  Bf5 {[%clk 0:01:12]} 18. Rd2 {[%clk 0:02:06]}  Rfe8 {[%clk 0:01:07]} 19. Bd4 {[%clk 0:01:51]}  Bg4 {[%clk 0:00:57]} 20. Re1 {[%clk 0:01:48]}  Bb4 {[%clk 0:00:55]} 21. Bc3 {[%clk 0:01:48]}  Bxc3 {[%clk 0:00:54]} 22. Nxc3 {[%clk 0:01:47]}  Qa5 {[%clk 0:00:54]} 23. Qc2 {[%clk 0:01:41]}  Re6 {[%clk 0:00:48]} 24. h3 {[%clk 0:01:41]}  Bh5 {[%clk 0:00:47]} 25. e3 {[%clk 0:01:40]}  d4 {[%clk 0:00:36]} 26. Ne4 {[%clk 0:01:26]}  Bg6 {[%clk 0:00:26]} 27. exd4 {[%clk 0:01:25]}  Rae8 {[%clk 0:00:26]} 28. Rde2 {[%clk 0:01:25]}  Qb4 {[%clk 0:00:20]} 29. f3 {[%clk 0:01:11]}  Qxd4+ {[%clk 0:00:19]} 30. Kh2 {[%clk 0:01:12]}  Bxe4 {[%clk 0:00:18]} 31. Rxe4 {[%clk 0:01:11]}  Rxe4 {[%clk 0:00:18]} 32. Rxe4 {[%clk 0:01:11]}  Rxe4 {[%clk 0:00:18]} 33. Qxe4 {[%clk 0:01:11]}  Qxe4 {[%clk 0:00:19]} 34. fxe4 {[%clk 0:01:11]}  Ne5 {[%clk 0:00:19]} 35. Bf1 {[%clk 0:01:08]}  Kf8 {[%clk 0:00:19]} 36. Kg2 {[%clk 0:01:08]}  Ke7 {[%clk 0:00:18]} 37. Kf2 {[%clk 0:01:09]}  Kd6 {[%clk 0:00:18]} 38. Ke3 {[%clk 0:01:09]}  Kc5 {[%clk 0:00:19]} 39. a3 {[%clk 0:01:07]}  f6 {[%clk 0:00:17]} 40. b4+ {[%clk 0:01:07]}  Kd6 {[%clk 0:00:17]} 41. Kd4 {[%clk 0:01:06]}  g6 {[%clk 0:00:16]} 42. Be2 {[%clk 0:01:06]}  Nd7 {[%clk 0:00:11]} 43. h4 {[%clk 0:01:05]}  c5+ {[%clk 0:00:09]} 44. bxc5+ {[%clk 0:01:05]}  Nxc5 {[%clk 0:00:10]} 45. Bc4 {[%clk 0:01:02]}  Nd7 {[%clk 0:00:09]} 46. Bg8 {[%clk 0:00:59]}  h6 {[%clk 0:00:08]} 47. Bh7 {[%clk 0:00:58]}  Ne5 {[%clk 0:00:07]} 48. Bg8 {[%clk 0:00:57]}  Nd7 {[%clk 0:00:03]} 49. Bd5 {[%clk 0:00:56]}  Ne5 {[%clk 0:00:04]} 50. Bg8 {[%clk 0:00:55]}  g5 {[%clk 0:00:04]} 51. Bd5 {[%clk 0:00:46]}  gxh4 {[%clk 0:00:04]} 52. gxh4 {[%clk 0:00:45]}  Nf3+ {[%clk 0:00:04]} 53. Kc4 {[%clk 0:00:40]}  Nxh4 {[%clk 0:00:05]} 54. Kb5 {[%clk 0:00:40]}  Nf3 {[%clk 0:00:04]} 55. Ka6 {[%clk 0:00:40]}  h5 {[%clk 0:00:02]} 56. Bf7 {[%clk 0:00:40]}  h4 {[%clk 0:00:02]} 57. Bh5 {[%clk 0:00:41]}  Ne5 {[%clk 0:00:02]} 58. Be2 {[%clk 0:00:40]}  h3 {[%clk 0:00:03]} 59. Bf1 {[%clk 0:00:40]}  h2 {[%clk 0:00:03]} 60. Bg2 {[%clk 0:00:40]}  Nc4 {[%clk 0:00:02]} 61. a4 {[%clk 0:00:39]}  Nb2 {[%clk 0:00:03]} 62. a5 {[%clk 0:00:39]}  Nc4 {[%clk 0:00:03]} 63. Kb5 {[%clk 0:00:38]}  Ne3 {[%clk 0:00:03]} 64. Bh1 {[%clk 0:00:38]}  Ng4 {[%clk 0:00:04]} 65. Ka6 {[%clk 0:00:37]}  Nf2 {[%clk 0:00:04]} 66. Bg2 {[%clk 0:00:37]}  h1=Q {[%clk 0:00:04]} 67. Bxh1 {[%clk 0:00:37]}  Nxh1 {[%clk 0:00:05]} 68. Kxa7 {[%clk 0:00:38]}  Kc7 {[%clk 0:00:05]} 69. Ka6 {[%clk 0:00:38]}  Nf2 {[%clk 0:00:05]} 70. Kb5 {[%clk 0:00:37]}  Nxe4 {[%clk 0:00:05]} 0-1


[Site "https://www.chess.com"]

[Event "Titled Tuesday Blitz January 18 2022"]
[White "Vignesh, N R"]
[Black "Salinas Herrera, Pablo"]
[WhiteFideId "25012215"]
[BlackFideId "3407128"]
[WhiteElo "2395"]
[BlackElo "2541"]
[Result "1-0"]
[Round "11"]
[TimeControl "180+1"]
[Date "2022.01.18"]
[WhiteClock "0:00:45"]
[BlackClock "0:00:02"]

1. d4 {[%clk 0:03:00]}  d5 {[%clk 0:03:00]} 2. c4 {[%clk 0:03:00]}  c6 {[%clk 0:03:00]} 3. cxd5 {[%clk 0:02:59]}  cxd5 {[%clk 0:03:00]} 4. Bg5 {[%clk 0:03:00]}  h6 {[%clk 0:03:00]} 5. Bh4 {[%clk 0:03:00]}  Bf5 {[%clk 0:03:00]} 6. Nc3 {[%clk 0:02:59]}  Nc6 {[%clk 0:03:00]} 7. e3 {[%clk 0:02:58]}  Qd7 {[%clk 0:03:00]} 8. Nf3 {[%clk 0:02:55]}  e6 {[%clk 0:03:00]} 9. Bb5 {[%clk 0:02:55]}  Bd6 {[%clk 0:03:00]} 10. Bg3 {[%clk 0:02:54]}  a6 {[%clk 0:02:17]} 11. Bxc6 {[%clk 0:02:49]}  Qxc6 {[%clk 0:02:16]} 12. Qb3 {[%clk 0:02:48]}  Bxg3 {[%clk 0:02:02]} 13. hxg3 {[%clk 0:02:47]}  Nf6 {[%clk 0:02:00]} 14. Ne5 {[%clk 0:02:44]}  Qc7 {[%clk 0:02:00]} 15. Qa4+ {[%clk 0:02:40]}  Kf8 {[%clk 0:01:59]} 16. O-O {[%clk 0:02:38]}  g5 {[%clk 0:01:36]} 17. Rfc1 {[%clk 0:02:34]}  Qe7 {[%clk 0:01:36]} 18. Qa5 {[%clk 0:02:31]}  Kg7 {[%clk 0:01:35]} 19. Na4 {[%clk 0:02:30]}  Rac8 {[%clk 0:01:25]} 20. Nb6 {[%clk 0:02:29]}  Rc7 {[%clk 0:01:02]} 21. Rxc7 {[%clk 0:01:42]}  Qxc7 {[%clk 0:01:02]} 22. Qc5 {[%clk 0:01:42]}  Qxc5 {[%clk 0:00:57]} 23. dxc5 {[%clk 0:01:43]}  Ne4 {[%clk 0:00:58]} 24. b4 {[%clk 0:01:43]}  f6 {[%clk 0:00:58]} 25. Nf3 {[%clk 0:01:41]}  Nc3 {[%clk 0:00:54]} 26. Nd4 {[%clk 0:01:38]}  Kg6 {[%clk 0:00:44]} 27. a4 {[%clk 0:01:27]}  e5 {[%clk 0:00:44]} 28. Nxf5 {[%clk 0:01:27]}  Kxf5 {[%clk 0:00:44]} 29. f3 {[%clk 0:01:24]}  d4 {[%clk 0:00:44]} 30. Kf2 {[%clk 0:01:21]}  dxe3+ {[%clk 0:00:33]} 31. Kxe3 {[%clk 0:01:20]}  Rd8 {[%clk 0:00:34]} 32. Nc4 {[%clk 0:01:17]}  Nd5+ {[%clk 0:00:29]} 33. Ke2 {[%clk 0:01:14]}  Nxb4 {[%clk 0:00:30]} 34. Rb1 {[%clk 0:01:09]}  Na2 {[%clk 0:00:27]} 35. Ne3+ {[%clk 0:01:05]}  Kg6 {[%clk 0:00:25]} 36. Rxb7 {[%clk 0:01:01]}  Nc3+ {[%clk 0:00:25]} 37. Ke1 {[%clk 0:01:00]}  Nxa4 {[%clk 0:00:26]} 38. c6 {[%clk 0:00:59]}  Rc8 {[%clk 0:00:20]} 39. Nd5 {[%clk 0:00:56]}  Kh5 {[%clk 0:00:01]} 40. c7 {[%clk 0:00:46]}  Re8 {[%clk 0:00:02]} 41. Nxf6+ {[%clk 0:00:45]} 1-0


[Site "https://www.chess.com"]

[Event "Titled Tuesday Blitz January 18 2022"]
[White "Vlassov, Nikolai"]
[Black "Osmak, Yuliia"]
[WhiteFideId "4103360"]
[BlackFideId "14101602"]
[WhiteElo "2407"]
[BlackElo "2302"]
[Result "1-0"]
[Round "11"]
[TimeControl "180+1"]
[Date "2022.01.18"]
[WhiteClock "0:00:56"]
[BlackClock "0:00:01"]

1. e4 {[%clk 0:03:00]}  e5 {[%clk 0:02:59]} 2. Bc4 {[%clk 0:03:00]}  Nf6 {[%clk 0:02:53]} 3. d3 {[%clk 0:03:00]}  Nc6 {[%clk 0:02:37]} 4. Nf3 {[%clk 0:03:00]}  Be7 {[%clk 0:02:36]} 5. O-O {[%clk 0:02:59]}  O-O {[%clk 0:02:34]} 6. Re1 {[%clk 0:03:00]}  d6 {[%clk 0:02:33]} 7. a4 {[%clk 0:03:00]}  a6 {[%clk 0:02:33]} 8. c3 {[%clk 0:02:57]}  Bg4 {[%clk 0:02:29]} 9. Nbd2 {[%clk 0:02:57]}  d5 {[%clk 0:02:10]} 10. exd5 {[%clk 0:02:56]}  Nxd5 {[%clk 0:02:11]} 11. h3 {[%clk 0:02:53]}  Bh5 {[%clk 0:02:11]} 12. a5 {[%clk 0:02:44]}  Kh8 {[%clk 0:02:01]} 13. Qb3 {[%clk 0:02:43]}  Nf4 {[%clk 0:01:51]} 14. Qxb7 {[%clk 0:02:32]}  Qd6 {[%clk 0:01:49]} 15. Ne4 {[%clk 0:02:20]}  Qg6 {[%clk 0:01:36]} 16. Bxf4 {[%clk 0:02:19]}  Bxf3 {[%clk 0:01:35]} 17. Bg3 {[%clk 0:02:19]}  f5 {[%clk 0:01:06]} 18. gxf3 {[%clk 0:02:07]}  fxe4 {[%clk 0:00:56]} 19. Qxc7 {[%clk 0:01:38]}  Bh4 {[%clk 0:00:33]} 20. Kh2 {[%clk 0:01:30]}  Bxg3+ {[%clk 0:00:29]} 21. fxg3 {[%clk 0:01:30]}  Rxf3 {[%clk 0:00:27]} 22. Rg1 {[%clk 0:01:29]}  exd3 {[%clk 0:00:24]} 23. Bd5 {[%clk 0:01:27]}  Rf2+ {[%clk 0:00:22]} 24. Rg2 {[%clk 0:01:26]}  Rf6 {[%clk 0:00:15]} 25. Re1 {[%clk 0:01:21]}  Raf8 {[%clk 0:00:14]} 26. Be4 {[%clk 0:01:18]}  Qg5 {[%clk 0:00:09]} 27. Bxc6 {[%clk 0:01:16]}  d2 {[%clk 0:00:06]} 28. Rd1 {[%clk 0:01:15]}  h5 {[%clk 0:00:05]} 29. Rdxd2 {[%clk 0:01:08]}  h4 {[%clk 0:00:05]} 30. Rde2 {[%clk 0:01:02]}  Qh6 {[%clk 0:00:02]} 31. Bb7 {[%clk 0:00:57]}  hxg3+ {[%clk 0:00:01]} 32. Rxg3 {[%clk 0:00:56]}  Rf2+ {[%clk 0:00:01]} 33. Rxf2 {[%clk 0:00:57]}  Rxf2+ {[%clk 0:00:01]} 34. Bg2 {[%clk 0:00:57]}  Rf8 {[%clk 0:00:01]} 35. Qxe5 {[%clk 0:00:56]} 1-0


[Site "https://www.chess.com"]

[Event "Titled Tuesday Blitz January 18 2022"]
[White "Wagner, Dennis"]
[Black "Bortnyk, Olexandr"]
[WhiteFideId "24650684"]
[BlackFideId "14120828"]
[WhiteElo "2355"]
[BlackElo "2723"]
[Result "0-1"]
[Round "11"]
[TimeControl "180+1"]
[Date "2022.01.18"]
[WhiteClock "0:00:03"]
[BlackClock "0:00:05"]

1. d4 {[%clk 0:03:00]}  f5 {[%clk 0:02:54]} 2. Nf3 {[%clk 0:02:58]}  Nf6 {[%clk 0:02:54]} 3. c4 {[%clk 0:02:58]}  d6 {[%clk 0:02:54]} 4. Nc3 {[%clk 0:02:58]}  g6 {[%clk 0:02:55]} 5. e3 {[%clk 0:02:57]}  Bg7 {[%clk 0:02:54]} 6. b4 {[%clk 0:02:58]}  c5 {[%clk 0:02:50]} 7. bxc5 {[%clk 0:02:49]}  dxc5 {[%clk 0:02:51]} 8. Bb2 {[%clk 0:02:47]}  cxd4 {[%clk 0:02:46]} 9. exd4 {[%clk 0:02:47]}  Nc6 {[%clk 0:02:03]} 10. d5 {[%clk 0:02:30]}  Qb6 {[%clk 0:01:54]} 11. Na4 {[%clk 0:02:19]}  Qa5+ {[%clk 0:01:23]} 12. Bc3 {[%clk 0:02:19]}  Nb4 {[%clk 0:01:18]} 13. a3 {[%clk 0:02:16]}  Nfxd5 {[%clk 0:01:00]} 14. axb4 {[%clk 0:02:04]}  Bxc3+ {[%clk 0:00:55]} 15. Nxc3 {[%clk 0:01:59]}  Qxb4 {[%clk 0:00:56]} 16. cxd5 {[%clk 0:01:50]}  Qxc3+ {[%clk 0:00:56]} 17. Nd2 {[%clk 0:01:50]}  O-O {[%clk 0:00:52]} 18. Bc4 {[%clk 0:01:43]}  b5 {[%clk 0:00:48]} 19. Ba2 {[%clk 0:01:13]}  Qe5+ {[%clk 0:00:42]} 20. Kf1 {[%clk 0:01:11]}  Rd8 {[%clk 0:00:39]} 21. Nf3 {[%clk 0:01:02]}  Qd6 {[%clk 0:00:39]} 22. Qe2 {[%clk 0:00:47]}  a5 {[%clk 0:00:34]} 23. h4 {[%clk 0:00:45]}  a4 {[%clk 0:00:33]} 24. h5 {[%clk 0:00:44]}  b4 {[%clk 0:00:33]} 25. Bc4 {[%clk 0:00:44]}  Ba6 {[%clk 0:00:20]} 26. hxg6 {[%clk 0:00:44]}  hxg6 {[%clk 0:00:18]} 27. Kg1 {[%clk 0:00:39]}  b3 {[%clk 0:00:11]} 28. Bxa6 {[%clk 0:00:36]}  Rxa6 {[%clk 0:00:12]} 29. Nd4 {[%clk 0:00:23]}  Qf6 {[%clk 0:00:11]} 30. Re1 {[%clk 0:00:16]}  Rxd5 {[%clk 0:00:04]} 31. Qc4 {[%clk 0:00:16]}  Rd6 {[%clk 0:00:04]} 32. Nb5 {[%clk 0:00:16]}  Rd7 {[%clk 0:00:02]} 33. Nc7 {[%clk 0:00:16]}  Qd4 {[%clk 0:00:02]} 34. Qc6 {[%clk 0:00:10]}  R5d6 {[%clk 0:00:03]} 35. Qa8+ {[%clk 0:00:09]}  Rd8 {[%clk 0:00:04]} 36. Qf3 {[%clk 0:00:07]}  Qd2 {[%clk 0:00:02]} 37. Rxe7 {[%clk 0:00:06]}  Qc1+ {[%clk 0:00:03]} 38. Kh2 {[%clk 0:00:06]}  Qh6+ {[%clk 0:00:04]} 39. Kg3 {[%clk 0:00:04]}  Qg5+ {[%clk 0:00:04]} 40. Kh2 {[%clk 0:00:04]}  Qxe7 {[%clk 0:00:05]} 41. Nb5 {[%clk 0:00:03]}  Rd3 {[%clk 0:00:04]} 42. Qc6 {[%clk 0:00:03]}  Qh4+ {[%clk 0:00:04]} 43. Kg1 {[%clk 0:00:03]}  Rd1# {[%clk 0:00:05]} 0-1


[Site "https://www.chess.com"]

[Event "Titled Tuesday Blitz January 18 2022"]
[White "Wong, Yinn Long"]
[Black "Vovk, Orest"]
[WhiteFideId "5707684"]
[BlackFideId "14113490"]
[WhiteElo "2055"]
[BlackElo "2203"]
[Result "1-0"]
[Round "11"]
[TimeControl "180+1"]
[Date "2022.01.18"]
[WhiteClock "0:01:08"]
[BlackClock "0:00:04"]

1. d4 {[%clk 0:03:00]}  d6 {[%clk 0:02:52]} 2. e4 {[%clk 0:03:00]}  Nf6 {[%clk 0:02:51]} 3. Nc3 {[%clk 0:03:01]}  e5 {[%clk 0:02:50]} 4. Nge2 {[%clk 0:03:01]}  exd4 {[%clk 0:02:48]} 5. Nxd4 {[%clk 0:03:01]}  Be7 {[%clk 0:02:46]} 6. Bf4 {[%clk 0:03:01]}  Nc6 {[%clk 0:02:45]} 7. Qd2 {[%clk 0:02:52]}  Nxd4 {[%clk 0:02:43]} 8. Qxd4 {[%clk 0:02:52]}  O-O {[%clk 0:02:43]} 9. O-O-O {[%clk 0:02:51]}  Be6 {[%clk 0:02:41]} 10. Kb1 {[%clk 0:02:49]}  Nd7 {[%clk 0:02:40]} 11. f3 {[%clk 0:02:42]}  Bf6 {[%clk 0:02:40]} 12. Qd2 {[%clk 0:02:43]}  Nc5 {[%clk 0:02:38]} 13. Be3 {[%clk 0:02:40]}  a6 {[%clk 0:02:30]} 14. Bd4 {[%clk 0:02:28]}  Bxd4 {[%clk 0:02:11]} 15. Qxd4 {[%clk 0:02:28]}  b5 {[%clk 0:02:12]} 16. f4 {[%clk 0:02:24]}  f6 {[%clk 0:02:05]} 17. Be2 {[%clk 0:02:20]}  Rb8 {[%clk 0:01:54]} 18. Rhe1 {[%clk 0:02:16]}  b4 {[%clk 0:01:40]} 19. Nd5 {[%clk 0:02:16]}  a5 {[%clk 0:01:03]} 20. Bc4 {[%clk 0:02:12]}  Kh8 {[%clk 0:01:00]} 21. Ne3 {[%clk 0:02:03]}  Bxc4 {[%clk 0:00:55]} 22. Nxc4 {[%clk 0:02:04]}  a4 {[%clk 0:00:54]} 23. e5 {[%clk 0:02:04]}  fxe5 {[%clk 0:00:52]} 24. fxe5 {[%clk 0:02:04]}  b3 {[%clk 0:00:47]} 25. cxb3 {[%clk 0:01:50]}  axb3 {[%clk 0:00:46]} 26. a3 {[%clk 0:01:50]}  Qg5 {[%clk 0:00:38]} 27. exd6 {[%clk 0:01:46]}  cxd6 {[%clk 0:00:29]} 28. Nxd6 {[%clk 0:01:47]}  Ra8 {[%clk 0:00:13]} 29. Re2 {[%clk 0:01:29]}  Qg6+ {[%clk 0:00:10]} 30. Ka1 {[%clk 0:01:30]}  Na4 {[%clk 0:00:05]} 31. Nc4 {[%clk 0:01:16]}  h6 {[%clk 0:00:04]} 32. Ne5 {[%clk 0:01:15]}  Qf5 {[%clk 0:00:04]} 33. g4 {[%clk 0:01:08]} 1-0


[Site "https://www.chess.com"]

[Event "Titled Tuesday Blitz January 18 2022"]
[White "Yuan, Qingyu"]
[Black "Bacrot, Etienne"]
[WhiteFideId "8609772"]
[BlackFideId "605506"]
[WhiteElo "2359"]
[BlackElo "2673"]
[Result "0-1"]
[Round "11"]
[TimeControl "180+1"]
[Date "2022.01.18"]
[WhiteClock "0:00:09"]
[BlackClock "0:00:15"]

1. Nf3 {[%clk 0:03:00]}  d5 {[%clk 0:02:58]} 2. g3 {[%clk 0:03:00]}  Nf6 {[%clk 0:02:58]} 3. Bg2 {[%clk 0:03:01]}  c6 {[%clk 0:02:58]} 4. O-O {[%clk 0:03:01]}  Bg4 {[%clk 0:02:58]} 5. h3 {[%clk 0:03:01]}  Bxf3 {[%clk 0:02:58]} 6. Bxf3 {[%clk 0:03:01]}  Nbd7 {[%clk 0:02:59]} 7. d3 {[%clk 0:03:01]}  h5 {[%clk 0:02:58]} 8. e4 {[%clk 0:02:44]}  e6 {[%clk 0:02:52]} 9. Bg2 {[%clk 0:02:30]}  h4 {[%clk 0:02:50]} 10. g4 {[%clk 0:02:28]}  Qc7 {[%clk 0:02:46]} 11. g5 {[%clk 0:02:20]}  Nh5 {[%clk 0:02:44]} 12. Qg4 {[%clk 0:02:15]}  dxe4 {[%clk 0:01:52]} 13. Qxe4 {[%clk 0:01:48]}  O-O-O {[%clk 0:01:46]} 14. Be3 {[%clk 0:01:36]}  Bc5 {[%clk 0:01:43]} 15. Nd2 {[%clk 0:01:34]}  Bxe3 {[%clk 0:01:40]} 16. Qxe3 {[%clk 0:01:33]}  Nf4 {[%clk 0:01:39]} 17. Qxa7 {[%clk 0:01:24]}  Ne5 {[%clk 0:01:36]} 18. Rfe1 {[%clk 0:01:11]}  Neg6 {[%clk 0:01:33]} 19. Bf1 {[%clk 0:01:08]}  Rd5 {[%clk 0:01:21]} 20. Ne4 {[%clk 0:00:59]}  Ne5 {[%clk 0:01:01]} 21. Re3 {[%clk 0:00:52]}  Ra5 {[%clk 0:00:54]} 22. Nd6+ {[%clk 0:00:36]}  Kd7 {[%clk 0:00:47]} 23. Qd4 {[%clk 0:00:26]}  Qxd6 {[%clk 0:00:44]} 24. Qxf4 {[%clk 0:00:25]}  Ke7 {[%clk 0:00:42]} 25. Rae1 {[%clk 0:00:23]}  Ng6 {[%clk 0:00:41]} 26. Qxd6+ {[%clk 0:00:15]}  Kxd6 {[%clk 0:00:41]} 27. a3 {[%clk 0:00:15]}  Rxg5+ {[%clk 0:00:40]} 28. Kh2 {[%clk 0:00:16]}  Ra8 {[%clk 0:00:40]} 29. Bg2 {[%clk 0:00:16]}  Rb5 {[%clk 0:00:39]} 30. b3 {[%clk 0:00:09]}  Rxa3 {[%clk 0:00:38]} 31. Re4 {[%clk 0:00:09]}  Rg5 {[%clk 0:00:36]} 32. Rd4+ {[%clk 0:00:06]}  Ke7 {[%clk 0:00:36]} 33. Ree4 {[%clk 0:00:04]}  Rf5 {[%clk 0:00:33]} 34. Re2 {[%clk 0:00:03]}  Nf4 {[%clk 0:00:31]} 35. Rd2 {[%clk 0:00:03]}  Ng6 {[%clk 0:00:27]} 36. Be4 {[%clk 0:00:03]}  Rf4 {[%clk 0:00:26]} 37. Rc4 {[%clk 0:00:02]}  Ne5 {[%clk 0:00:25]} 38. Rc5 {[%clk 0:00:02]}  f6 {[%clk 0:00:19]} 39. Kg2 {[%clk 0:00:02]}  b6 {[%clk 0:00:18]} 40. Rc3 {[%clk 0:00:02]}  c5 {[%clk 0:00:18]} 41. b4 {[%clk 0:00:01]}  Rxc3 {[%clk 0:00:17]} 42. bxc5 {[%clk 0:00:02]}  Rxc5 {[%clk 0:00:16]} 43. Re2 {[%clk 0:00:03]}  Rxe4 {[%clk 0:00:15]} 44. Rxe4 {[%clk 0:00:02]}  Rxc2 {[%clk 0:00:15]} 45. d4 {[%clk 0:00:03]}  Rc4 {[%clk 0:00:14]} 46. Rxh4 {[%clk 0:00:03]}  Nf7 {[%clk 0:00:14]} 47. Rg4 {[%clk 0:00:03]}  g5 {[%clk 0:00:14]} 48. h4 {[%clk 0:00:03]}  gxh4 {[%clk 0:00:14]} 49. Rxh4 {[%clk 0:00:04]}  b5 {[%clk 0:00:14]} 50. Rh5 {[%clk 0:00:04]}  Rxd4 {[%clk 0:00:14]} 51. Rxb5 {[%clk 0:00:04]}  f5 {[%clk 0:00:14]} 52. Rb7+ {[%clk 0:00:05]}  Kf6 {[%clk 0:00:14]} 53. Rb3 {[%clk 0:00:05]}  Rd5 {[%clk 0:00:14]} 54. Kg3 {[%clk 0:00:06]}  Ng5 {[%clk 0:00:14]} 55. Kg2 {[%clk 0:00:06]}  Rd4 {[%clk 0:00:14]} 56. Ra3 {[%clk 0:00:07]}  Rg4+ {[%clk 0:00:14]} 57. Kf1 {[%clk 0:00:07]}  Rf4 {[%clk 0:00:14]} 58. Kg2 {[%clk 0:00:07]}  Ne4 {[%clk 0:00:14]} 59. Ra2 {[%clk 0:00:07]}  Rxf2+ {[%clk 0:00:14]} 60. Rxf2 {[%clk 0:00:07]}  Nxf2 {[%clk 0:00:14]} 61. Kxf2 {[%clk 0:00:08]}  Ke5 {[%clk 0:00:15]} 62. Kf3 {[%clk 0:00:08]}  Kd4 {[%clk 0:00:15]} 63. Kf4 {[%clk 0:00:09]}  e5+ {[%clk 0:00:15]} 64. Kf3 {[%clk 0:00:09]}  Kd3 {[%clk 0:00:15]} 65. Kf2 {[%clk 0:00:09]}  Kd2 {[%clk 0:00:14]} 66. Kf1 {[%clk 0:00:09]}  e4 {[%clk 0:00:15]} 0-1


[Site "https://www.chess.com"]